[Event "Early-Titled-Tuesday-Blitz-May-28-2024"]
[Site "Chess.com"]
[Date "2024.05.28"]
[Round "3"]
[White "Budag-Leyla"]
[Black "HajiyevKanan"]
[Result "1-0"]
[WhiteElo "1950"]
[BlackElo "2526"]
[TimeControl "180+1"]
[EndTime "8:29:08 PDT"]
[Termination "Budag-Leyla won by checkmate"]

1. d4 {[%clk 0:03:00.9]} 1... d5 {[%clk 0:02:53.6]} 2. Nf3 {[%clk 0:03:01.2]}
2... c5 {[%clk 0:02:53.7]} 3. c4 {[%clk 0:03:01.5]} 3... cxd4 {[%clk 0:02:54.6]}
4. cxd5 {[%clk 0:03:01.7]} 4... Qa5+ {[%clk 0:02:54.4]} 5. Bd2 {[%clk
0:02:52.9]} 5... Qxd5 {[%clk 0:02:53.8]} 6. e3 {[%clk 0:02:53.1]} 6... dxe3
{[%clk 0:02:48.6]} 7. fxe3 {[%clk 0:02:52.9]} 7... Nf6 {[%clk 0:02:42.2]} 8. Nc3
{[%clk 0:02:53.2]} 8... Qc5 {[%clk 0:02:42.7]} 9. Rc1 {[%clk 0:02:52]} 9... Nc6
{[%clk 0:02:39.6]} 10. Nb5 {[%clk 0:02:51.7]} 10... Qb6 {[%clk 0:02:39.5]} 11.
Qc2 {[%clk 0:02:49.1]} 11... Bg4 {[%clk 0:02:32]} 12. Be2 {[%clk 0:02:47]} 12...
Rc8 {[%clk 0:02:31.7]} 13. Qb3 {[%clk 0:02:41.1]} 13... e6 {[%clk 0:02:26.2]}
14. h3 {[%clk 0:02:37.4]} 14... Bh5 {[%clk 0:02:25.2]} 15. a4 {[%clk 0:02:34.3]}
15... Be7 {[%clk 0:02:06.6]} 16. a5 {[%clk 0:02:33.9]} 16... Qd8 {[%clk
0:02:06.9]} 17. Rd1 {[%clk 0:02:30.5]} 17... O-O {[%clk 0:01:57.5]} 18. Bc3
{[%clk 0:02:28.6]} 18... Qe8 {[%clk 0:01:52.5]} 19. O-O {[%clk 0:02:26.6]} 19...
Nd5 {[%clk 0:01:49]} 20. Nbd4 {[%clk 0:01:56.6]} 20... Nxe3 {[%clk 0:01:27.3]}
21. Nxc6 {[%clk 0:01:55.8]} 21... Qxc6 {[%clk 0:01:27.5]} 22. Bxg7 {[%clk
0:01:51.6]} 22... Kxg7 {[%clk 0:01:21]} 23. Qxe3 {[%clk 0:01:51.2]} 23... Bc5
{[%clk 0:01:21.3]} 24. Nd4 {[%clk 0:01:51.6]} 24... Bxe2 {[%clk 0:01:16]} 25.
Qxe2 {[%clk 0:01:51.9]} 25... Rcd8 {[%clk 0:01:07.4]} 26. Kh1 {[%clk 0:01:50.5]}
26... Bxd4 {[%clk 0:00:47.5]} 27. Qg4+ {[%clk 0:01:49.4]} 27... Kh8 {[%clk
0:00:48.2]} 28. Rxd4 {[%clk 0:01:49.7]} 28... f5 {[%clk 0:00:44.4]} 29. Qf4
{[%clk 0:01:45.2]} 29... Qc5 {[%clk 0:00:30.4]} 30. Rxd8 {[%clk 0:01:43.1]}
30... Rxd8 {[%clk 0:00:31.3]} 31. Qg5 {[%clk 0:01:43.3]} 31... Qf8 {[%clk
0:00:18.4]} 32. Re1 {[%clk 0:01:43.2]} 32... Rd6 {[%clk 0:00:13.8]} 33. b4
{[%clk 0:01:40.4]} 33... a6 {[%clk 0:00:10.2]} 34. Qg3 {[%clk 0:01:36.8]} 34...
Qe7 {[%clk 0:00:07.5]} 35. Qe5+ {[%clk 0:01:36.6]} 35... Kg8 {[%clk 0:00:07.5]}
36. Qc5 {[%clk 0:01:34]} 36... Rd7 {[%clk 0:00:06.4]} 37. Qc8+ {[%clk
0:01:33.4]} 37... Kg7 {[%clk 0:00:07.1]} 38. Qc3+ {[%clk 0:01:32.9]} 38... Qf6
{[%clk 0:00:07.6]} 39. Qg3+ {[%clk 0:01:33]} 39... Kf7 {[%clk 0:00:08.3]} 40.
Qf3 {[%clk 0:01:32.6]} 40... e5 {[%clk 0:00:07.3]} 41. Qh5+ {[%clk 0:01:31.3]}
41... Kg7 {[%clk 0:00:08]} 42. Qf3 {[%clk 0:01:27.6]} 42... e4 {[%clk
0:00:07.8]} 43. Qg3+ {[%clk 0:01:28.1]} 43... Qg6 {[%clk 0:00:07.6]} 44. Qe5+
{[%clk 0:01:28.2]} 44... Qf6 {[%clk 0:00:08.4]} 45. Qg3+ {[%clk 0:01:28.3]}
45... Kf7 {[%clk 0:00:08.7]} 46. Qf4 {[%clk 0:01:26]} 46... Re7 {[%clk
0:00:09.3]} 47. Re3 {[%clk 0:01:23.2]} 47... Qe5 {[%clk 0:00:09.3]} 48. Qh6
{[%clk 0:01:23.2]} 48... Kg8 {[%clk 0:00:08]} 49. Qg5+ {[%clk 0:01:18.8]} 49...
Kf7 {[%clk 0:00:06.1]} 50. Qh5+ {[%clk 0:01:19]} 50... Kg7 {[%clk 0:00:06.1]}
51. Qg5+ {[%clk 0:01:18.9]} 51... Kh8 {[%clk 0:00:06.6]} 52. Qh6 {[%clk
0:01:14.6]} 52... Qg7 {[%clk 0:00:04.2]} 53. Qh4 {[%clk 0:01:14.3]} 53... Rf7
{[%clk 0:00:04.2]} 54. Re1 {[%clk 0:01:13.1]} 54... f4 {[%clk 0:00:04.2]} 55.
Rxe4 {[%clk 0:01:12.4]} 55... Qa1+ {[%clk 0:00:03.8]} 56. Kh2 {[%clk 0:01:12.1]}
56... Qf6 {[%clk 0:00:04.3]} 57. Re8+ {[%clk 0:01:11.3]} 57... Kg7 {[%clk
0:00:04.2]} 58. Qg4+ {[%clk 0:01:10.8]} 58... Qg6 {[%clk 0:00:04.9]} 59. Qf3
{[%clk 0:01:10.9]} 59... Kh6 {[%clk 0:00:02.3]} 60. Qe2 {[%clk 0:01:04.2]} 60...
f3 {[%clk 0:00:01]} 61. Qe3+ {[%clk 0:01:03]} 61... Qg5 {[%clk 0:00:01.6]} 62.
Re6+ {[%clk 0:01:02.5]} 62... Kh5 {[%clk 0:00:01.5]} 63. g4+ {[%clk 0:01:02.7]}
63... Kh4 {[%clk 0:00:02.1]} 64. Qf2# {[%clk 0:01:03]} 1-0

[Event "Early-Titled-Tuesday-Blitz-May-28-2024"]
[Site "Chess.com"]
[Date "2024.05.28"]
[Round "3"]
[White "DanielDardha2005"]
[Black "DumbKing75"]
[Result "0-1"]
[WhiteElo "2873"]
[BlackElo "2668"]
[TimeControl "180+1"]
[EndTime "8:29:12 PDT"]
[Termination "DumbKing75 won by checkmate"]

1. d4 {[%clk 0:02:49.8]} 1... d5 {[%clk 0:02:58.3]} 2. Nf3 {[%clk 0:02:48.6]}
2... Nf6 {[%clk 0:02:58.4]} 3. e3 {[%clk 0:02:47.9]} 3... c5 {[%clk 0:02:48.8]}
4. dxc5 {[%clk 0:02:46.8]} 4... e6 {[%clk 0:02:40.4]} 5. a3 {[%clk 0:02:43.4]}
5... Bxc5 {[%clk 0:02:39.2]} 6. b4 {[%clk 0:02:43]} 6... Be7 {[%clk 0:02:37.3]}
7. c4 {[%clk 0:02:41.3]} 7... a5 {[%clk 0:02:27.7]} 8. b5 {[%clk 0:02:39.3]}
8... O-O {[%clk 0:02:11.7]} 9. Bb2 {[%clk 0:02:35.6]} 9... Nbd7 {[%clk
0:01:54.7]} 10. Nc3 {[%clk 0:02:20.2]} 10... Nb6 {[%clk 0:01:49]} 11. cxd5
{[%clk 0:02:08.1]} 11... Nfxd5 {[%clk 0:01:49.9]} 12. Nxd5 {[%clk 0:02:08.4]}
12... Nxd5 {[%clk 0:01:50.8]} 13. e4 {[%clk 0:02:07.4]} 13... Bf6 {[%clk
0:01:35.8]} 14. Qd2 {[%clk 0:01:21.9]} 14... Bxb2 {[%clk 0:01:10.3]} 15. Qxb2
{[%clk 0:01:22.8]} 15... Qf6 {[%clk 0:01:11.1]} 16. Qxf6 {[%clk 0:01:15.1]}
16... Nxf6 {[%clk 0:01:12]} 17. Bd3 {[%clk 0:01:15.8]} 17... Rd8 {[%clk
0:01:09.4]} 18. Ke2 {[%clk 0:01:14.8]} 18... b6 {[%clk 0:01:03.7]} 19. Ne5
{[%clk 0:01:08.3]} 19... Bb7 {[%clk 0:01:01.3]} 20. f3 {[%clk 0:01:06.9]} 20...
Nd7 {[%clk 0:01:01.2]} 21. Nc4 {[%clk 0:01:02.4]} 21... Rac8 {[%clk 0:00:49.7]}
22. Rac1 {[%clk 0:00:55.1]} 22... Rc7 {[%clk 0:00:34.7]} 23. Ke3 {[%clk
0:00:35.4]} 23... Kf8 {[%clk 0:00:28.7]} 24. Nd6 {[%clk 0:00:23.4]} 24... Nc5
{[%clk 0:00:25.3]} 25. e5 {[%clk 0:00:22.6]} 25... f6 {[%clk 0:00:23.6]} 26. f4
{[%clk 0:00:22.6]} 26... Bxg2 {[%clk 0:00:20.1]} 27. Rhg1 {[%clk 0:00:21.3]}
27... Bd5 {[%clk 0:00:20.3]} 28. Bxh7 {[%clk 0:00:18.3]} 28... Rcd7 {[%clk
0:00:11.9]} 29. Bb1 {[%clk 0:00:04.6]} 29... Nb7 {[%clk 0:00:08.5]} 30. Ne4
{[%clk 0:00:04.7]} 30... Bxe4 {[%clk 0:00:08.5]} 31. Bxe4 {[%clk 0:00:04.2]}
31... Nc5 {[%clk 0:00:09]} 32. exf6 {[%clk 0:00:04.4]} 32... gxf6 {[%clk
0:00:09.2]} 33. Rg6 {[%clk 0:00:03.2]} 33... Nxe4 {[%clk 0:00:09.5]} 34. Kxe4
{[%clk 0:00:03]} 34... Rd4+ {[%clk 0:00:09.3]} 35. Kf3 {[%clk 0:00:03.6]} 35...
Rd3+ {[%clk 0:00:09.5]} 36. Ke2 {[%clk 0:00:01.7]} 36... Rd2+ {[%clk 0:00:06.1]}
37. Ke3 {[%clk 0:00:02.3]} 37... R8d3+ {[%clk 0:00:05.9]} 38. Ke4 {[%clk
0:00:02.9]} 38... Kf7 {[%clk 0:00:06.8]} 39. Rcg1 {[%clk 0:00:02.4]} 39... f5+
{[%clk 0:00:07]} 40. Ke5 {[%clk 0:00:01.6]} 40... Re3# {[%clk 0:00:07.7]} 0-1

[Event "Early-Titled-Tuesday-Blitz-May-28-2024"]
[Site "Chess.com"]
[Date "2024.05.28"]
[Round "3"]
[White "Zhigalko_Sergei"]
[Black "ChessShop"]
[Result "1/2-1/2"]
[WhiteElo "2889"]
[BlackElo "2668"]
[TimeControl "180+1"]
[EndTime "8:29:14 PDT"]
[Termination "Game drawn by repetition"]

1. e4 {[%clk 0:03:00.9]} 1... e5 {[%clk 0:02:59.8]} 2. Nf3 {[%clk 0:03:00.9]}
2... d6 {[%clk 0:03:00.3]} 3. d4 {[%clk 0:03:00.7]} 3... exd4 {[%clk 0:03:01.2]}
4. Qxd4 {[%clk 0:03:00.6]} 4... Nf6 {[%clk 0:03:01.7]} 5. Nc3 {[%clk 0:03:00.7]}
5... Be7 {[%clk 0:03:02]} 6. Bg5 {[%clk 0:03:00]} 6... h6 {[%clk 0:03:02.5]} 7.
Bh4 {[%clk 0:02:59.7]} 7... Nc6 {[%clk 0:03:03.1]} 8. Bb5 {[%clk 0:02:56.9]}
8... O-O {[%clk 0:03:03.6]} 9. Bxc6 {[%clk 0:02:57.1]} 9... bxc6 {[%clk
0:03:04.5]} 10. O-O {[%clk 0:02:54.6]} 10... Nd7 {[%clk 0:03:04.7]} 11. Bxe7
{[%clk 0:02:53.9]} 11... Qxe7 {[%clk 0:03:05.6]} 12. Rfe1 {[%clk 0:02:54.2]}
12... a5 {[%clk 0:03:05.8]} 13. e5 {[%clk 0:02:50]} 13... d5 {[%clk 0:03:06]}
14. Qf4 {[%clk 0:02:43.3]} 14... Nb6 {[%clk 0:02:55.1]} 15. Rad1 {[%clk
0:02:15.3]} 15... Be6 {[%clk 0:02:53.7]} 16. Nd4 {[%clk 0:02:06.9]} 16... c5
{[%clk 0:02:53.6]} 17. Nf5 {[%clk 0:02:07.2]} 17... Bxf5 {[%clk 0:02:54]} 18.
Qxf5 {[%clk 0:02:08.1]} 18... Qe6 {[%clk 0:02:54.6]} 19. Qf4 {[%clk 0:02:00.2]}
19... a4 {[%clk 0:02:53.5]} 20. h3 {[%clk 0:01:50.2]} 20... c6 {[%clk
0:02:34.7]} 21. b3 {[%clk 0:01:43.3]} 21... axb3 {[%clk 0:02:33.8]} 22. axb3
{[%clk 0:01:44.1]} 22... Nd7 {[%clk 0:02:13.3]} 23. Rd3 {[%clk 0:01:14.8]} 23...
Rfb8 {[%clk 0:02:00.2]} 24. Qg3 {[%clk 0:00:57]} 24... Rb4 {[%clk 0:01:52]} 25.
f4 {[%clk 0:00:40.2]} 25... Qf5 {[%clk 0:01:19.4]} 26. Rf1 {[%clk 0:00:37.8]}
26... Rd4 {[%clk 0:00:58.7]} 27. Rff3 {[%clk 0:00:22.8]} 27... Ra1+ {[%clk
0:00:55.4]} 28. Kh2 {[%clk 0:00:22.9]} 28... Rxd3 {[%clk 0:00:48.9]} 29. Rxd3
{[%clk 0:00:23.8]} 29... Rc1 {[%clk 0:00:41.4]} 30. Nd1 {[%clk 0:00:04.1]} 30...
Rxc2 {[%clk 0:00:38.4]} 31. Rf3 {[%clk 0:00:03.7]} 31... Rc1 {[%clk 0:00:29.6]}
32. Nf2 {[%clk 0:00:03.4]} 32... c4 {[%clk 0:00:21.4]} 33. bxc4 {[%clk
0:00:03.2]} 33... dxc4 {[%clk 0:00:21.2]} 34. Qh4 {[%clk 0:00:03.4]} 34... Nf8
{[%clk 0:00:14.5]} 35. Qd8 {[%clk 0:00:03.4]} 35... Qd7 {[%clk 0:00:13.3]} 36.
Qa8 {[%clk 0:00:02.9]} 36... c3 {[%clk 0:00:08.2]} 37. Ng4 {[%clk 0:00:02.6]}
37... Qd1 {[%clk 0:00:03.2]} 38. Kg3 {[%clk 0:00:01.4]} 38... Qe1+ {[%clk
0:00:03.2]} 39. Rf2 {[%clk 0:00:01.6]} 39... c2 {[%clk 0:00:03.1]} 40. e6 {[%clk
0:00:01.7]} 40... Qxe6 {[%clk 0:00:03.1]} 41. Kh2 {[%clk 0:00:01.5]} 41... Qe1
{[%clk 0:00:02.9]} 42. Rf3 {[%clk 0:00:01.7]} 42... Qh1+ {[%clk 0:00:02.8]} 43.
Kg3 {[%clk 0:00:02.4]} 43... Qe1+ {[%clk 0:00:03.5]} 44. Kh2 {[%clk 0:00:02.8]}
44... Qh1+ {[%clk 0:00:04.1]} 45. Kg3 {[%clk 0:00:03.2]} 45... Qe1+ {[%clk
0:00:04.7]} 46. Kh2 {[%clk 0:00:03.5]} 1/2-1/2

[Event "Early-Titled-Tuesday-Blitz-May-28-2024"]
[Site "Chess.com"]
[Date "2024.05.28"]
[Round "3"]
[White "martinmena"]
[Black "andrzej"]
[Result "0-1"]
[WhiteElo "2126"]
[BlackElo "2478"]
[TimeControl "180+1"]
[EndTime "8:29:16 PDT"]
[Termination "andrzej won by checkmate"]

1. c4 {[%clk 0:03:00.9]} 1... e6 {[%clk 0:02:31.2]} 2. g3 {[%clk 0:03:00.1]}
2... d5 {[%clk 0:02:32.1]} 3. Bg2 {[%clk 0:02:59.9]} 3... Nf6 {[%clk 0:02:32.8]}
4. Nf3 {[%clk 0:03:00.2]} 4... dxc4 {[%clk 0:02:33.2]} 5. Qa4+ {[%clk
0:02:58.6]} 5... Bd7 {[%clk 0:02:33.6]} 6. Qxc4 {[%clk 0:02:58.6]} 6... c5
{[%clk 0:02:34.3]} 7. O-O {[%clk 0:02:58.6]} 7... Nc6 {[%clk 0:02:33.3]} 8. d3
{[%clk 0:02:57.5]} 8... b5 {[%clk 0:02:21.8]} 9. Qc2 {[%clk 0:02:54.6]} 9... Rc8
{[%clk 0:02:21.5]} 10. b3 {[%clk 0:02:54.4]} 10... Be7 {[%clk 0:02:20.1]} 11.
Bb2 {[%clk 0:02:54.3]} 11... O-O {[%clk 0:02:20.3]} 12. Nc3 {[%clk 0:02:40.3]}
12... Nd4 {[%clk 0:02:17.1]} 13. Qd2 {[%clk 0:02:40.3]} 13... Bc6 {[%clk
0:02:11.5]} 14. Nxd4 {[%clk 0:02:17.3]} 14... Bxg2 {[%clk 0:02:07.9]} 15. Nxe6
{[%clk 0:02:09.3]} 15... Qb6 {[%clk 0:01:54.9]} 16. Nxf8 {[%clk 0:01:54]} 16...
Bxf1 {[%clk 0:01:54.5]} 17. Rxf1 {[%clk 0:01:51.6]} 17... Bxf8 {[%clk
0:01:51.7]} 18. Rc1 {[%clk 0:01:22.8]} 18... h5 {[%clk 0:01:49.8]} 19. h4 {[%clk
0:01:13.1]} 19... a6 {[%clk 0:01:44.4]} 20. Qg5 {[%clk 0:01:11.5]} 20... Qe6
{[%clk 0:01:39.2]} 21. Kg2 {[%clk 0:00:27.7]} 21... Re8 {[%clk 0:01:38.5]} 22.
e4 {[%clk 0:00:20.1]} 22... c4 {[%clk 0:01:24.7]} 23. bxc4 {[%clk 0:00:18.8]}
23... bxc4 {[%clk 0:01:24.6]} 24. Nd5 {[%clk 0:00:18.9]} 24... Nxd5 {[%clk
0:01:14.4]} 25. exd5 {[%clk 0:00:19.1]} 25... Qe2 {[%clk 0:01:14.2]} 26. Bd4
{[%clk 0:00:08.2]} 26... cxd3 {[%clk 0:01:13.2]} 27. Be3 {[%clk 0:00:07.3]}
27... Bd6 {[%clk 0:00:43.5]} 28. Rc6 {[%clk 0:00:06.8]} 28... Rxe3 {[%clk
0:00:30.3]} 29. Qxe3 {[%clk 0:00:06.5]} 29... Qxe3 {[%clk 0:00:30]} 30. fxe3
{[%clk 0:00:06.5]} 30... d2 {[%clk 0:00:30.5]} 31. Rxd6 {[%clk 0:00:04.4]} 31...
d1=Q {[%clk 0:00:30.3]} 32. Rd8+ {[%clk 0:00:02.4]} 32... Kh7 {[%clk 0:00:30.6]}
33. Kf2 {[%clk 0:00:01.5]} 33... Qc2+ {[%clk 0:00:24.2]} 34. Kf3 {[%clk
0:00:01.3]} 34... Qxa2 {[%clk 0:00:24.2]} 35. e4 {[%clk 0:00:01.2]} 35... Qb3+
{[%clk 0:00:23.2]} 36. Kf4 {[%clk 0:00:01.7]} 36... Qb6 {[%clk 0:00:22.7]} 37.
Re8 {[%clk 0:00:01.7]} 37... Qd6+ {[%clk 0:00:22.4]} 38. Re5 {[%clk 0:00:00.6]}
38... Qf6+ {[%clk 0:00:22.1]} 39. Rf5 {[%clk 0:00:00.8]} 39... Qd6+ {[%clk
0:00:22.3]} 40. Kf3 {[%clk 0:00:01]} 40... f6 {[%clk 0:00:22]} 41. Rxh5+ {[%clk
0:00:01.3]} 41... Kg8 {[%clk 0:00:21.8]} 42. Re5 {[%clk 0:00:01]} 42... fxe5
{[%clk 0:00:21.8]} 43. g4 {[%clk 0:00:01]} 43... Qf6+ {[%clk 0:00:21.9]} 44. Ke3
{[%clk 0:00:01]} 44... Qf4+ {[%clk 0:00:22.8]} 45. Kd3 {[%clk 0:00:01.6]} 45...
Qxg4 {[%clk 0:00:22.8]} 46. d6 {[%clk 0:00:01.8]} 46... Qe6 {[%clk 0:00:22.6]}
47. Ke3 {[%clk 0:00:02.7]} 47... Qxd6 {[%clk 0:00:22.8]} 48. Kf3 {[%clk
0:00:03.3]} 48... Qd4 {[%clk 0:00:23.1]} 49. Kg4 {[%clk 0:00:04.2]} 49... Qxe4+
{[%clk 0:00:23.3]} 50. Kg5 {[%clk 0:00:04.7]} 50... Qf4+ {[%clk 0:00:23.3]} 51.
Kh5 {[%clk 0:00:05]} 51... Qf5# {[%clk 0:00:23.8]} 0-1

[Event "Early-Titled-Tuesday-Blitz-May-28-2024"]
[Site "Chess.com"]
[Date "2024.05.28"]
[Round "3"]
[White "mostafa_sakha"]
[Black "GlavkonVVS"]
[Result "0-1"]
[WhiteElo "2320"]
[BlackElo "2586"]
[TimeControl "180+1"]
[EndTime "8:29:17 PDT"]
[Termination "GlavkonVVS won on time"]

1. d4 {[%clk 0:03:00.8]} 1... Nf6 {[%clk 0:02:59.6]} 2. c4 {[%clk 0:03:00.6]}
2... c5 {[%clk 0:02:59.8]} 3. d5 {[%clk 0:03:00.5]} 3... e6 {[%clk 0:03:00]} 4.
Nc3 {[%clk 0:03:00.3]} 4... exd5 {[%clk 0:03:00.2]} 5. cxd5 {[%clk 0:03:01.2]}
5... d6 {[%clk 0:03:00.4]} 6. e4 {[%clk 0:03:00.5]} 6... g6 {[%clk 0:02:59.1]}
7. Nge2 {[%clk 0:03:00.3]} 7... Bg7 {[%clk 0:02:59.2]} 8. Ng3 {[%clk 0:03:00.2]}
8... a6 {[%clk 0:02:58.1]} 9. a4 {[%clk 0:02:59.9]} 9... h5 {[%clk 0:02:57.7]}
10. Be2 {[%clk 0:02:55.7]} 10... h4 {[%clk 0:02:57.8]} 11. Nf1 {[%clk
0:02:55.7]} 11... Qe7 {[%clk 0:02:48.5]} 12. Bg5 {[%clk 0:02:32.3]} 12... h3
{[%clk 0:02:46.6]} 13. g3 {[%clk 0:02:29.7]} 13... Nbd7 {[%clk 0:02:40.8]} 14.
Ne3 {[%clk 0:02:12.4]} 14... Rb8 {[%clk 0:02:38.1]} 15. a5 {[%clk 0:02:00.3]}
15... Qe5 {[%clk 0:02:34.4]} 16. Bf4 {[%clk 0:01:53.8]} 16... Qe7 {[%clk
0:02:34]} 17. Nc4 {[%clk 0:01:38.2]} 17... Ne5 {[%clk 0:02:32.9]} 18. Nxe5
{[%clk 0:01:19]} 18... dxe5 {[%clk 0:02:32.6]} 19. Be3 {[%clk 0:01:19.5]} 19...
Bd7 {[%clk 0:02:26]} 20. O-O {[%clk 0:01:18.9]} 20... Rc8 {[%clk 0:02:24.8]} 21.
Qd2 {[%clk 0:01:17.5]} 21... O-O {[%clk 0:02:21]} 22. f3 {[%clk 0:01:17.1]}
22... c4 {[%clk 0:02:16.8]} 23. Rfb1 {[%clk 0:01:08.7]} 23... Qb4 {[%clk
0:02:09.8]} 24. Nd1 {[%clk 0:01:02.8]} 24... Qxd2 {[%clk 0:02:05.9]} 25. Bxd2
{[%clk 0:01:03.7]} 25... Rfd8 {[%clk 0:01:58.1]} 26. Kf2 {[%clk 0:01:02.8]}
26... Bf8 {[%clk 0:01:57.8]} 27. Be3 {[%clk 0:01:01.7]} 27... Bc5 {[%clk
0:01:57]} 28. Bxc5 {[%clk 0:01:00]} 28... Rxc5 {[%clk 0:01:57.1]} 29. Ne3 {[%clk
0:00:57.7]} 29... Bb5 {[%clk 0:01:56]} 30. Rc1 {[%clk 0:00:50.3]} 30... Rdc8
{[%clk 0:01:55.3]} 31. Rc3 {[%clk 0:00:48.5]} 31... Ne8 {[%clk 0:01:50.5]} 32.
Rac1 {[%clk 0:00:47.4]} 32... Nd6 {[%clk 0:01:42.8]} 33. b4 {[%clk 0:00:46.7]}
33... R5c7 {[%clk 0:01:40.7]} 34. Bf1 {[%clk 0:00:46.1]} 34... Bd7 {[%clk
0:01:29.9]} 35. g4 {[%clk 0:00:45.7]} 35... f5 {[%clk 0:01:23.2]} 36. gxf5
{[%clk 0:00:45.3]} 36... gxf5 {[%clk 0:01:23]} 37. Bxh3 {[%clk 0:00:45.9]} 37...
f4 {[%clk 0:01:21.7]} 38. Ng4 {[%clk 0:00:41.1]} 38... Kg7 {[%clk 0:01:11.7]}
39. Rg1 {[%clk 0:00:33.9]} 39... Bxg4 {[%clk 0:01:07.1]} 40. Rxg4+ {[%clk
0:00:33.4]} 40... Kf6 {[%clk 0:01:05.8]} 41. Rh4 {[%clk 0:00:32.5]} 41... Rg8
{[%clk 0:01:03.9]} 42. Rh6+ {[%clk 0:00:31]} 42... Rg6 {[%clk 0:01:04]} 43.
Rxg6+ {[%clk 0:00:30]} 43... Kxg6 {[%clk 0:01:04.3]} 44. Bf1 {[%clk 0:00:23.5]}
44... Kg5 {[%clk 0:01:01.9]} 45. Be2 {[%clk 0:00:16.6]} 45... Kh4 {[%clk
0:00:58.7]} 46. Kg2 {[%clk 0:00:12.5]} 46... Rg7+ {[%clk 0:00:57.5]} 47. Kf2
{[%clk 0:00:12.4]} 47... Kh3 {[%clk 0:00:48.9]} 48. Rc2 {[%clk 0:00:08.4]} 48...
Rg2+ {[%clk 0:00:44.7]} 49. Ke1 {[%clk 0:00:07.2]} 49... Kxh2 {[%clk 0:00:45.3]}
50. Bd1 {[%clk 0:00:04.4]} 50... Rxc2 {[%clk 0:00:44.7]} 51. Bxc2 {[%clk
0:00:04.3]} 51... Kg2 {[%clk 0:00:45.2]} 52. Ke2 {[%clk 0:00:04.3]} 52... Nb5
{[%clk 0:00:44.2]} 53. Bd1 {[%clk 0:00:03.2]} 53... Kg3 {[%clk 0:00:34.4]} 54.
Kd2 {[%clk 0:00:02.9]} 54... Kf2 {[%clk 0:00:34]} 0-1

[Event "Early-Titled-Tuesday-Blitz-May-28-2024"]
[Site "Chess.com"]
[Date "2024.05.28"]
[Round "3"]
[White "Actuary44"]
[Black "kachsona"]
[Result "0-1"]
[WhiteElo "2458"]
[BlackElo "2640"]
[TimeControl "180+1"]
[EndTime "8:29:19 PDT"]
[Termination "kachsona won by checkmate"]

1. e4 {[%clk 0:03:00.9]} 1... e6 {[%clk 0:02:59.7]} 2. d4 {[%clk 0:03:00.9]}
2... d5 {[%clk 0:03:00.4]} 3. Nc3 {[%clk 0:03:01.3]} 3... Nf6 {[%clk 0:02:56.9]}
4. e5 {[%clk 0:03:01.6]} 4... Nfd7 {[%clk 0:02:57.2]} 5. f4 {[%clk 0:03:02.2]}
5... c5 {[%clk 0:02:57.5]} 6. dxc5 {[%clk 0:03:03.1]} 6... Bxc5 {[%clk
0:02:55.2]} 7. Nf3 {[%clk 0:03:03.4]} 7... Nc6 {[%clk 0:02:46.9]} 8. Bd3 {[%clk
0:03:03.8]} 8... O-O {[%clk 0:02:35.1]} 9. Bxh7+ {[%clk 0:03:02.5]} 9... Kxh7
{[%clk 0:02:16.6]} 10. Ng5+ {[%clk 0:03:02.5]} 10... Kg6 {[%clk 0:02:16.4]} 11.
Qg4 {[%clk 0:03:02.5]} 11... f5 {[%clk 0:02:13.3]} 12. Qg3 {[%clk 0:03:02]}
12... Qe7 {[%clk 0:01:49]} 13. Qh4 {[%clk 0:02:50.7]} 13... Ndxe5 {[%clk
0:01:27.6]} 14. fxe5 {[%clk 0:02:41.1]} 14... Nxe5 {[%clk 0:01:17.7]} 15. Bf4
{[%clk 0:02:20]} 15... Ng4 {[%clk 0:01:10.5]} 16. O-O-O {[%clk 0:02:14]} 16...
Be3+ {[%clk 0:01:07.6]} 17. Bxe3 {[%clk 0:01:58.6]} 17... Nxe3 {[%clk
0:01:08.5]} 18. Qh7+ {[%clk 0:01:51]} 18... Kxg5 {[%clk 0:01:02.5]} 19. Rd3
{[%clk 0:01:31.4]} 19... Ng4 {[%clk 0:00:53.4]} 20. h3 {[%clk 0:01:29.2]} 20...
Nf6 {[%clk 0:00:21.2]} 21. Rg3+ {[%clk 0:01:27.4]} 21... Kf4 {[%clk 0:00:21.4]}
22. Qh4+ {[%clk 0:00:49.6]} 22... Ke5 {[%clk 0:00:21.7]} 23. Nb5 {[%clk
0:00:34.1]} 23... Qc5 {[%clk 0:00:12.1]} 24. Rf1 {[%clk 0:00:23.5]} 24... d4
{[%clk 0:00:06.3]} 25. Qf4+ {[%clk 0:00:17.3]} 25... Kd5 {[%clk 0:00:06.7]} 26.
Nc7+ {[%clk 0:00:14.9]} 26... Kc6 {[%clk 0:00:06.7]} 27. Nxa8 {[%clk 0:00:14.3]}
27... e5 {[%clk 0:00:04.4]} 28. Qf3+ {[%clk 0:00:07.9]} 28... e4 {[%clk
0:00:04.8]} 29. Qf4 {[%clk 0:00:07.8]} 29... Nd5 {[%clk 0:00:04.8]} 30. Qe5
{[%clk 0:00:05.5]} 30... Bd7 {[%clk 0:00:04.1]} 31. Rg6+ {[%clk 0:00:05]} 31...
Rf6 {[%clk 0:00:03.9]} 32. Rxg7 {[%clk 0:00:04]} 32... d3 {[%clk 0:00:04.1]} 33.
c3 {[%clk 0:00:03.8]} 33... d2+ {[%clk 0:00:03.8]} 34. Kxd2 {[%clk 0:00:03.7]}
34... Qe3+ {[%clk 0:00:03.9]} 35. Kc2 {[%clk 0:00:04.2]} 35... Qe2+ {[%clk
0:00:03.9]} 36. Kb3 {[%clk 0:00:04.3]} 36... Qxf1 {[%clk 0:00:03.7]} 37. Rxd7
{[%clk 0:00:03.6]} 37... Qb5+ {[%clk 0:00:03.6]} 38. Kc2 {[%clk 0:00:03.7]}
38... Ne3+ {[%clk 0:00:03]} 39. Kd2 {[%clk 0:00:03.2]} 39... Qxe5 {[%clk
0:00:03.6]} 40. Kxe3 {[%clk 0:00:03.3]} 40... Kxd7 {[%clk 0:00:03.7]} 41. Nb6+
{[%clk 0:00:01.4]} 41... axb6 {[%clk 0:00:03.2]} 42. g4 {[%clk 0:00:02.3]} 42...
Qg3+ {[%clk 0:00:03.3]} 43. Ke2 {[%clk 0:00:03.2]} 43... Rd6 {[%clk 0:00:03.4]}
44. Kf1 {[%clk 0:00:02.8]} 44... Qf3+ {[%clk 0:00:03.9]} 45. Kg1 {[%clk
0:00:03.2]} 45... Rd1+ {[%clk 0:00:04.8]} 46. Kh2 {[%clk 0:00:03.8]} 46... Rh1#
{[%clk 0:00:05.5]} 0-1